[Event "*** Titled Tuesday Blitz"]
[Site "Chess.com"]
[Date "2018.01.02"]
[Round "6"]
[White "theblitzchamp"]
[Black "SquashMaestro"]
[Result "1-0"]
[WhiteElo "2446"]
[BlackElo "2249"]
[TimeControl "180+2"]
[EndTime "14:19:51 PST"]
[Termination "theblitzchamp won on time"]

1. e4 {[%clk 0:03:01.9]} 1... c5 {[%clk 0:03:00.4]} 2. Nf3 {[%clk 0:03:03.1]}
2... Nc6 {[%clk 0:03:01.8]} 3. d4 {[%clk 0:03:04.3]} 3... cxd4 {[%clk
0:03:02.7]} 4. Nxd4 {[%clk 0:03:06.2]} 4... e5 {[%clk 0:03:03.8]} 5. Nb5 {[%clk
0:03:06.8]} 5... d6 {[%clk 0:03:05.3]} 6. a4 {[%clk 0:03:07.8]} 6... Be7 {[%clk
0:03:03.7]} 7. N1c3 {[%clk 0:03:08.8]} 7... a6 {[%clk 0:03:01.2]} 8. Na3 {[%clk
0:03:09.6]} 8... Nf6 {[%clk 0:03:02.6]} 9. Be3 {[%clk 0:03:10.1]} 9... O-O
{[%clk 0:03:02.7]} 10. f3 {[%clk 0:03:11.6]} 10... Be6 {[%clk 0:02:50.4]} 11.
Nd5 {[%clk 0:03:12.6]} 11... Bxd5 {[%clk 0:02:38.6]} 12. exd5 {[%clk 0:03:13.5]}
12... Qa5+ {[%clk 0:02:39.9]} 13. c3 {[%clk 0:02:56.8]} 13... Nxd5 {[%clk
0:02:31.8]} 14. Bf2 {[%clk 0:02:50.1]} 14... Nf4 {[%clk 0:02:26.4]} 15. g3
{[%clk 0:02:41.5]} 15... Ne6 {[%clk 0:02:24.5]} 16. Nc4 {[%clk 0:02:41.1]} 16...
Qc7 {[%clk 0:02:15]} 17. Nb6 {[%clk 0:02:42.1]} 17... Rab8 {[%clk 0:02:03]} 18.
Bh3 {[%clk 0:02:42.7]} 18... Bg5 {[%clk 0:01:49.3]} 19. O-O {[%clk 0:02:41.8]}
19... f5 {[%clk 0:01:43.1]} 20. Qd5 {[%clk 0:02:40]} 20... Qe7 {[%clk
0:01:36.6]} 21. Rad1 {[%clk 0:02:38.5]} 21... Rbd8 {[%clk 0:01:36]} 22. Rfe1
{[%clk 0:02:38]} 22... Kh8 {[%clk 0:01:29.8]} 23. Qd3 {[%clk 0:02:19.8]} 23...
g6 {[%clk 0:01:27.6]} 24. Nd5 {[%clk 0:02:17.9]} 24... Qf7 {[%clk 0:01:24]} 25.
Bb6 {[%clk 0:02:18.4]} 25... Rd7 {[%clk 0:01:22.4]} 26. a5 {[%clk 0:02:19.2]}
26... Bd8 {[%clk 0:01:17]} 27. b4 {[%clk 0:02:17.2]} 27... Ng5 {[%clk
0:01:15.4]} 28. Bg2 {[%clk 0:02:17.2]} 28... Bxb6+ {[%clk 0:01:09]} 29. Nxb6
{[%clk 0:02:18.1]} 29... Rdd8 {[%clk 0:01:09.5]} 30. Nc4 {[%clk 0:02:17]} 30...
e4 {[%clk 0:01:03.6]} 31. fxe4 {[%clk 0:01:36.9]} 31... fxe4 {[%clk 0:01:03.8]}
32. Qe3 {[%clk 0:01:29.6]} 32... Nf3+ {[%clk 0:01:01.3]} 33. Bxf3 {[%clk
0:01:13.7]} 33... exf3 {[%clk 0:01:03.2]} 34. Nxd6 {[%clk 0:00:52.2]} 34... f2+
{[%clk 0:01:00.6]} 35. Kg2 {[%clk 0:00:53.1]} 1-0

[Event "*** Titled Tuesday Blitz"]
[Site "Chess.com"]
[Date "2018.01.02"]
[Round "6"]
[White "nicegg"]
[Black "evgenysharapov"]
[Result "0-1"]
[WhiteElo "2002"]
[BlackElo "2370"]
[TimeControl "180+2"]
[EndTime "14:19:53 PST"]
[Termination "evgenysharapov won on time"]

1. e4 {[%clk 0:03:01.9]} 1... c5 {[%clk 0:02:56.5]} 2. Qh5 {[%clk 0:03:02.2]}
2... e6 {[%clk 0:02:55.1]} 3. f4 {[%clk 0:03:03.1]} 3... Nc6 {[%clk 0:02:54.3]}
4. c3 {[%clk 0:03:03.6]} 4... Nf6 {[%clk 0:02:53.4]} 5. Qf3 {[%clk 0:03:03.5]}
5... d6 {[%clk 0:02:52.2]} 6. d3 {[%clk 0:03:04.2]} 6... Be7 {[%clk 0:02:52.6]}
7. g4 {[%clk 0:03:05.1]} 7... Qc7 {[%clk 0:02:48.2]} 8. g5 {[%clk 0:03:06.2]}
8... Nd7 {[%clk 0:02:48.8]} 9. h4 {[%clk 0:03:07.4]} 9... b6 {[%clk 0:02:48.3]}
10. Be3 {[%clk 0:03:07]} 10... Bb7 {[%clk 0:02:48.9]} 11. Nd2 {[%clk 0:03:08.1]}
11... O-O-O {[%clk 0:02:48.7]} 12. O-O-O {[%clk 0:03:06.7]} 12... d5 {[%clk
0:02:48.6]} 13. Kb1 {[%clk 0:03:00.3]} 13... d4 {[%clk 0:02:48]} 14. Bf2 {[%clk
0:03:01]} 14... dxc3 {[%clk 0:02:43.4]} 15. bxc3 {[%clk 0:03:00.8]} 15... Na5
{[%clk 0:02:43]} 16. Ne2 {[%clk 0:02:53]} 16... c4 {[%clk 0:02:31]} 17. d4
{[%clk 0:02:41.2]} 17... b5 {[%clk 0:02:30.1]} 18. Ka1 {[%clk 0:02:34.7]} 18...
Nb6 {[%clk 0:02:23.1]} 19. Bg2 {[%clk 0:02:28.6]} 19... Na4 {[%clk 0:02:23.2]}
20. Rb1 {[%clk 0:02:20.4]} 20... a6 {[%clk 0:02:23.6]} 21. f5 {[%clk 0:02:12.4]}
21... e5 {[%clk 0:02:01.7]} 22. Bg3 {[%clk 0:02:04.6]} 22... Bd6 {[%clk
0:02:01.2]} 23. Rhd1 {[%clk 0:01:48.3]} 23... Rhe8 {[%clk 0:02:00.8]} 24. dxe5
{[%clk 0:01:26.2]} 24... Bxe5 {[%clk 0:02:01.2]} 25. Bxe5 {[%clk 0:01:27.1]}
25... Qxe5 {[%clk 0:02:01.2]} 26. Bh3 {[%clk 0:01:03.1]} 26... Kb8 {[%clk
0:01:50.2]} 27. Rbc1 {[%clk 0:00:57.6]} 27... Rd3 {[%clk 0:01:42.5]} 28. Qf4
{[%clk 0:00:56.1]} 28... Rxh3 {[%clk 0:01:35.6]} 29. Nxc4 {[%clk 0:00:32.6]}
29... Nxc4 {[%clk 0:01:20.9]} 30. Rd8+ {[%clk 0:00:32.8]} 30... Ka7 {[%clk
0:01:21]} 31. Rxe8 {[%clk 0:00:32.7]} 31... Qxe8 {[%clk 0:01:20.8]} 32. Qf2+
{[%clk 0:00:31.9]} 32... Nab6 {[%clk 0:01:19.6]} 33. Nf4 {[%clk 0:00:31.3]}
33... Re3 {[%clk 0:01:15.8]} 34. Nd5 {[%clk 0:00:18.2]} 34... Bxd5 {[%clk
0:01:14.7]} 35. exd5 {[%clk 0:00:19.3]} 35... Qe5 {[%clk 0:01:13.8]} 36. d6
{[%clk 0:00:18.7]} 36... Qxd6 {[%clk 0:01:14.2]} 37. f6 {[%clk 0:00:15.6]} 37...
g6 {[%clk 0:01:14]} 38. h5 {[%clk 0:00:16.1]} 38... Qa3 {[%clk 0:01:10.5]} 0-1

[Event "*** Titled Tuesday Blitz"]
[Site "Chess.com"]
[Date "2018.01.02"]
[Round "6"]
[White "angieflynn"]
[Black "FrankieJay"]
[Result "0-1"]
[WhiteElo "1840"]
[BlackElo "2271"]
[TimeControl "180+2"]
[EndTime "14:19:53 PST"]
[Termination "FrankieJay won by resignation"]

1. d4 {[%clk 0:03:01.9]} 1... Nf6 {[%clk 0:03:00.5]} 2. Bf4 {[%clk 0:02:58.9]}
2... d5 {[%clk 0:03:00.4]} 3. e3 {[%clk 0:02:51.5]} 3... c5 {[%clk 0:03:00.8]}
4. c3 {[%clk 0:02:52.5]} 4... cxd4 {[%clk 0:02:59.4]} 5. exd4 {[%clk 0:02:51.8]}
5... Nc6 {[%clk 0:03:00.9]} 6. Nf3 {[%clk 0:02:52.1]} 6... Bg4 {[%clk
0:03:01.9]} 7. h3 {[%clk 0:02:48.2]} 7... Bh5 {[%clk 0:03:01.3]} 8. Be2 {[%clk
0:02:44.5]} 8... e6 {[%clk 0:02:58.4]} 9. O-O {[%clk 0:02:30]} 9... Be7 {[%clk
0:02:57.6]} 10. Nbd2 {[%clk 0:02:24.3]} 10... O-O {[%clk 0:02:58]} 11. Ne5
{[%clk 0:02:24.1]} 11... Bxe2 {[%clk 0:02:58.9]} 12. Qxe2 {[%clk 0:02:23.1]}
12... Nxe5 {[%clk 0:02:51.3]} 13. dxe5 {[%clk 0:02:21.7]} 13... Nd7 {[%clk
0:02:49]} 14. Bh2 {[%clk 0:02:21.8]} 14... b5 {[%clk 0:02:25.8]} 15. Kh1 {[%clk
0:02:18.1]} 15... b4 {[%clk 0:02:20.7]} 16. cxb4 {[%clk 0:02:15.7]} 16... Bxb4
{[%clk 0:02:22.6]} 17. a3 {[%clk 0:02:16.2]} 17... Be7 {[%clk 0:02:21.9]} 18. b4
{[%clk 0:02:11.4]} 18... Qb6 {[%clk 0:02:17.4]} 19. Nb3 {[%clk 0:02:09.9]} 19...
Rfc8 {[%clk 0:02:14.2]} 20. Rac1 {[%clk 0:02:09.8]} 20... g6 {[%clk 0:02:03.8]}
21. Qd3 {[%clk 0:01:58.7]} 21... Rxc1 {[%clk 0:02:00.5]} 22. Rxc1 {[%clk
0:01:57.4]} 22... Qxf2 {[%clk 0:01:12.9]} 23. Qb5 {[%clk 0:01:56.6]} 23... Nb6
{[%clk 0:00:38.7]} 24. Qa6 {[%clk 0:01:51.7]} 24... Qb2 {[%clk 0:00:34.8]} 25.
Bg1 {[%clk 0:01:18.5]} 25... Bg5 {[%clk 0:00:20]} 26. Rc7 {[%clk 0:00:58.4]}
26... Qxb3 {[%clk 0:00:12.8]} 27. Rxa7 {[%clk 0:00:28.1]} 27... Rxa7 {[%clk
0:00:13.7]} 28. Qxa7 {[%clk 0:00:29.3]} 28... Nc4 {[%clk 0:00:15]} 29. Qb8+
{[%clk 0:00:22.5]} 29... Kg7 {[%clk 0:00:15.8]} 30. b5 {[%clk 0:00:21.6]} 30...
Qb1 {[%clk 0:00:15.1]} 31. Qa7 {[%clk 0:00:15.1]} 31... Be3 {[%clk 0:00:15.4]}
0-1

[Event "*** Titled Tuesday Blitz"]
[Site "Chess.com"]
[Date "2018.01.02"]
[Round "6"]
[White "tteshan"]
[Black "abruptum"]
[Result "0-1"]
[WhiteElo "2020"]
[BlackElo "2307"]
[TimeControl "180+2"]
[EndTime "14:20:01 PST"]
[Termination "abruptum won by checkmate"]

1. d4 {[%clk 0:03:00.6]} 1... g6 {[%clk 0:03:00.3]} 2. c4 {[%clk 0:03:00.4]}
2... Bg7 {[%clk 0:03:01.5]} 3. Nc3 {[%clk 0:03:01.7]} 3... d6 {[%clk 0:03:02.8]}
4. e4 {[%clk 0:03:03.1]} 4... e5 {[%clk 0:03:03.7]} 5. d5 {[%clk 0:03:03.5]}
5... a5 {[%clk 0:03:03.9]} 6. Be2 {[%clk 0:03:04.2]} 6... Na6 {[%clk 0:03:04.5]}
7. h3 {[%clk 0:03:01.5]} 7... f5 {[%clk 0:03:02]} 8. exf5 {[%clk 0:03:01.3]}
8... gxf5 {[%clk 0:03:02.8]} 9. Nf3 {[%clk 0:02:59.1]} 9... Nf6 {[%clk
0:03:02.6]} 10. Bg5 {[%clk 0:02:58.4]} 10... O-O {[%clk 0:03:01.8]} 11. Qd2
{[%clk 0:02:50]} 11... Nc5 {[%clk 0:02:57]} 12. g3 {[%clk 0:02:41.5]} 12... Bd7
{[%clk 0:02:52.7]} 13. b3 {[%clk 0:02:39.2]} 13... Qe8 {[%clk 0:02:52.4]} 14.
Be3 {[%clk 0:02:36]} 14... Nce4 {[%clk 0:02:44.7]} 15. Nxe4 {[%clk 0:02:31.8]}
15... Nxe4 {[%clk 0:02:44.7]} 16. Qc2 {[%clk 0:02:28.5]} 16... f4 {[%clk
0:02:40.4]} 17. gxf4 {[%clk 0:02:15.9]} 17... exf4 {[%clk 0:02:40.7]} 18. Bd4
{[%clk 0:02:16.4]} 18... Bxd4 {[%clk 0:02:14]} 19. Nxd4 {[%clk 0:02:16.9]} 19...
f3 {[%clk 0:02:15.3]} 20. Rg1+ {[%clk 0:02:03.9]} 20... Kh8 {[%clk 0:02:14.8]}
21. Bxf3 {[%clk 0:02:02.4]} 21... Ng5+ {[%clk 0:02:01.3]} 22. Be2 {[%clk
0:02:00.4]} 22... Qe5 {[%clk 0:01:40.3]} 23. O-O-O {[%clk 0:01:57.5]} 23... Rxf2
{[%clk 0:01:36.7]} 24. Qd2 {[%clk 0:01:46.8]} 24... Rf4 {[%clk 0:00:57.4]} 25.
Bg4 {[%clk 0:01:21.3]} 25... Bxg4 {[%clk 0:00:46.1]} 26. hxg4 {[%clk 0:01:10]}
26... a4 {[%clk 0:00:43.8]} 27. Rge1 {[%clk 0:01:02.6]} 27... Ne4 {[%clk
0:00:44.1]} 28. Qb2 {[%clk 0:00:52.9]} 28... axb3 {[%clk 0:00:40.8]} 29. axb3
{[%clk 0:00:53]} 29... Rf2 {[%clk 0:00:41.1]} 30. Rxe4 {[%clk 0:00:38]} 30...
Qg5+ {[%clk 0:00:10.6]} 31. Rd2 {[%clk 0:00:37.9]} 31... Ra1+ {[%clk 0:00:08.4]}
32. Qxa1 {[%clk 0:00:22.6]} 32... Qxd2+ {[%clk 0:00:09]} 33. Kb1 {[%clk
0:00:20.3]} 33... Qd1# {[%clk 0:00:10.2]} 0-1

[Event "*** Titled Tuesday Blitz"]
[Site "Chess.com"]
[Date "2018.01.02"]
[Round "6"]
[White "IamSchrodingersCat"]
[Black "Divertissement"]
[Result "0-1"]
[WhiteElo "2373"]
[BlackElo "2431"]
[TimeControl "180+2"]
[EndTime "14:20:05 PST"]
[Termination "Divertissement won on time"]

1. e4 {[%clk 0:03:01.9]} 1... e6 {[%clk 0:02:31.8]} 2. d3 {[%clk 0:02:58.2]}
2... b6 {[%clk 0:02:31.5]} 3. Nf3 {[%clk 0:02:58.1]} 3... Bb7 {[%clk 0:02:32.5]}
4. Nbd2 {[%clk 0:02:59.4]} 4... c5 {[%clk 0:02:33.9]} 5. g3 {[%clk 0:03:00.6]}
5... Nc6 {[%clk 0:02:34.6]} 6. Bg2 {[%clk 0:03:02.1]} 6... d5 {[%clk 0:02:35.1]}
7. O-O {[%clk 0:03:03.1]} 7... Nf6 {[%clk 0:02:34.7]} 8. e5 {[%clk 0:03:03.3]}
8... Ng8 {[%clk 0:02:33.8]} 9. Re1 {[%clk 0:03:02.8]} 9... h5 {[%clk 0:02:35.1]}
10. h4 {[%clk 0:03:01.6]} 10... Nh6 {[%clk 0:02:35.3]} 11. Nf1 {[%clk
0:02:57.7]} 11... Nf5 {[%clk 0:02:28.3]} 12. Bf4 {[%clk 0:02:51.5]} 12... Be7
{[%clk 0:02:26.9]} 13. c3 {[%clk 0:02:41.4]} 13... Qd7 {[%clk 0:02:18.8]} 14.
Ng5 {[%clk 0:02:08.8]} 14... g6 {[%clk 0:02:00.9]} 15. Rc1 {[%clk 0:01:35.3]}
15... d4 {[%clk 0:01:57.6]} 16. a3 {[%clk 0:01:28.6]} 16... Bxg5 {[%clk
0:01:50.4]} 17. Bxg5 {[%clk 0:01:28.3]} 17... Nce7 {[%clk 0:01:52]} 18. c4
{[%clk 0:01:19]} 18... Bxg2 {[%clk 0:01:52.2]} 19. Kxg2 {[%clk 0:01:20.9]} 19...
Qb7+ {[%clk 0:01:50.5]} 20. Qf3 {[%clk 0:01:17.7]} 20... Qxf3+ {[%clk
0:01:50.1]} 21. Kxf3 {[%clk 0:01:19.6]} 21... a5 {[%clk 0:01:51.3]} 22. Nd2
{[%clk 0:01:12.3]} 22... Kd7 {[%clk 0:01:49.4]} 23. Rb1 {[%clk 0:01:09.7]} 23...
Nc6 {[%clk 0:01:49.8]} 24. Bf6 {[%clk 0:01:04.3]} 24... Rhb8 {[%clk 0:01:49.1]}
25. a4 {[%clk 0:00:56.3]} 25... Nb4 {[%clk 0:01:46.1]} 26. Ke4 {[%clk
0:00:53.9]} 26... Ne7 {[%clk 0:01:38.9]} 27. Nf3 {[%clk 0:00:44.2]} 27... Ng8
{[%clk 0:01:34]} 28. Bg7 {[%clk 0:00:38]} 28... Na6 {[%clk 0:01:23.1]} 29. Ng5
{[%clk 0:00:25.8]} 29... Ke7 {[%clk 0:01:24.2]} 30. Nh7 {[%clk 0:00:25.2]} 30...
Nc7 {[%clk 0:01:21.8]} 31. Rh1 {[%clk 0:00:17.8]} 31... Ne8 {[%clk 0:01:18.9]}
32. Bh8 {[%clk 0:00:11.5]} 32... Nh6 {[%clk 0:01:09.4]} 33. Bf6+ {[%clk
0:00:10.3]} 33... Kd7 {[%clk 0:01:06.6]} 34. Rbf1 {[%clk 0:00:06.3]} 34... Ng4
{[%clk 0:01:06]} 35. Bg5 {[%clk 0:00:06.1]} 35... f5+ {[%clk 0:00:41.3]} 36.
exf6 {[%clk 0:00:06]} 36... Nd6+ {[%clk 0:00:42.5]} 37. Kf3 {[%clk 0:00:04.5]}
37... Rh8 {[%clk 0:00:43.7]} 0-1

[Event "*** Titled Tuesday Blitz"]
[Site "Chess.com"]
[Date "2018.01.02"]
[Round "6"]
[White "SergeiAza"]
[Black "grzechu96"]
[Result "1-0"]
[WhiteElo "2659"]
[BlackElo "2446"]
[TimeControl "180+2"]
[EndTime "14:20:06 PST"]
[Termination "SergeiAza won by resignation"]

1. e4 {[%clk 0:03:01.9]} 1... c5 {[%clk 0:03:00.8]} 2. Nf3 {[%clk 0:03:02.9]}
2... d6 {[%clk 0:03:02.3]} 3. d4 {[%clk 0:03:03.5]} 3... cxd4 {[%clk 0:03:04.2]}
4. Nxd4 {[%clk 0:03:04.9]} 4... Nf6 {[%clk 0:03:05.5]} 5. Nc3 {[%clk 0:03:06.4]}
5... a6 {[%clk 0:03:07.2]} 6. Bg5 {[%clk 0:03:06.4]} 6... Nbd7 {[%clk
0:03:08.3]} 7. f4 {[%clk 0:03:03.8]} 7... Qc7 {[%clk 0:03:08.8]} 8. Be2 {[%clk
0:03:04.8]} 8... b5 {[%clk 0:02:47.1]} 9. a4 {[%clk 0:03:02.2]} 9... b4 {[%clk
0:02:43.8]} 10. Nd5 {[%clk 0:03:02.8]} 10... Nxd5 {[%clk 0:02:45.4]} 11. exd5
{[%clk 0:03:03.9]} 11... Bb7 {[%clk 0:02:47.1]} 12. Bf3 {[%clk 0:03:00.9]} 12...
Nb6 {[%clk 0:02:45.7]} 13. O-O {[%clk 0:02:38.7]} 13... Nxd5 {[%clk 0:02:40.4]}
14. Re1 {[%clk 0:02:35.4]} 14... e6 {[%clk 0:02:35]} 15. Kh1 {[%clk 0:02:28]}
15... Be7 {[%clk 0:02:28.2]} 16. Bxd5 {[%clk 0:02:11.3]} 16... Bxd5 {[%clk
0:02:23.7]} 17. Bxe7 {[%clk 0:02:12.1]} 17... Kxe7 {[%clk 0:02:14.3]} 18. Nxe6
{[%clk 0:02:08]} 18... Bxe6 {[%clk 0:02:12.3]} 19. f5 {[%clk 0:02:09]} 19... Qc4
{[%clk 0:01:50.1]} 20. b3 {[%clk 0:01:59.7]} 20... Qc3 {[%clk 0:01:15.7]} 21.
fxe6 {[%clk 0:01:53.6]} 21... f6 {[%clk 0:00:51.3]} 22. Qh5 {[%clk 0:01:48.8]}
22... g6 {[%clk 0:00:48.5]} 23. Qd5 {[%clk 0:01:46]} 23... Ra7 {[%clk
0:00:48.7]} 24. Rad1 {[%clk 0:01:45.7]} 24... Rd8 {[%clk 0:00:46.4]} 25. Rf1
{[%clk 0:01:33.9]} 25... Rc7 {[%clk 0:00:40.2]} 26. h3 {[%clk 0:01:30.4]} 26...
Qxc2 {[%clk 0:00:29.7]} 27. Qd4 {[%clk 0:01:09]} 27... Qc3 {[%clk 0:00:30.4]}
28. Qh4 {[%clk 0:01:09.3]} 28... Kxe6 {[%clk 0:00:18.1]} 29. Rfe1+ {[%clk
0:01:02.1]} 29... Kd7 {[%clk 0:00:19.2]} 30. Qxh7+ {[%clk 0:01:02.8]} 30... Kc8
{[%clk 0:00:20.5]} 31. Qxg6 {[%clk 0:01:02.6]} 31... d5 {[%clk 0:00:20.3]} 32.
Qf5+ {[%clk 0:00:59.1]} 32... Kb8 {[%clk 0:00:20.5]} 33. Re6 {[%clk 0:00:58.6]}
33... Qxb3 {[%clk 0:00:16.1]} 34. Rde1 {[%clk 0:00:53.8]} 34... Rb7 {[%clk
0:00:11.7]} 35. Qf4+ {[%clk 0:00:48.9]} 35... Ka7 {[%clk 0:00:12.2]} 36. Qxf6
{[%clk 0:00:49.8]} 36... Qxa4 {[%clk 0:00:11.9]} 37. Qxd8 {[%clk 0:00:49.2]}
37... b3 {[%clk 0:00:12.7]} 38. Qxd5 {[%clk 0:00:48.1]} 38... Qb4 {[%clk
0:00:08.9]} 39. Qc6 {[%clk 0:00:42.5]} 1-0

[Event "*** Titled Tuesday Blitz"]
[Site "Chess.com"]
[Date "2018.01.02"]
[Round "6"]
[White "arna"]
[Black "SabinaFoisor"]
[Result "0-1"]
[WhiteElo "2093"]
[BlackElo "2327"]
[TimeControl "180+2"]
[EndTime "14:20:17 PST"]
[Termination "SabinaFoisor won by resignation"]

1. e4 {[%clk 0:02:37]} 1... e5 {[%clk 0:02:59.3]} 2. Nf3 {[%clk 0:02:35.7]} 2...
Nc6 {[%clk 0:02:59.1]} 3. Nc3 {[%clk 0:02:30.5]} 3... Nf6 {[%clk 0:02:56.7]} 4.
d4 {[%clk 0:02:27]} 4... exd4 {[%clk 0:02:55.3]} 5. Nxd4 {[%clk 0:02:25.5]} 5...
Bc5 {[%clk 0:02:55]} 6. Be3 {[%clk 0:02:02.5]} 6... Bb6 {[%clk 0:02:54.3]} 7.
Bc4 {[%clk 0:01:52.3]} 7... O-O {[%clk 0:02:53.1]} 8. Qd2 {[%clk 0:01:16.9]}
8... Ng4 {[%clk 0:02:48.4]} 9. Nxc6 {[%clk 0:01:16.7]} 9... Bxe3 {[%clk
0:02:47.4]} 10. Nxd8 {[%clk 0:01:12.2]} 10... Bxd2+ {[%clk 0:02:47.6]} 11. Kxd2
{[%clk 0:01:14.1]} 11... Rxd8 {[%clk 0:02:48.9]} 12. f3 {[%clk 0:01:15.5]} 12...
Ne5 {[%clk 0:02:48.5]} 13. Bb3 {[%clk 0:01:17]} 13... c6 {[%clk 0:02:47.9]} 14.
Rad1 {[%clk 0:01:08.3]} 14... b6 {[%clk 0:02:47.6]} 15. Ke3 {[%clk 0:00:51.1]}
15... Kf8 {[%clk 0:02:44.2]} 16. Rd6 {[%clk 0:00:50.1]} 16... a5 {[%clk
0:02:40.8]} 17. Rhd1 {[%clk 0:00:49.8]} 17... Ke7 {[%clk 0:02:39.8]} 18. a4
{[%clk 0:00:47.1]} 18... Ba6 {[%clk 0:02:39.3]} 19. R6d4 {[%clk 0:00:32.7]}
19... g5 {[%clk 0:02:36.3]} 20. h3 {[%clk 0:00:21.8]} 20... h5 {[%clk
0:02:35.6]} 21. Rd6 {[%clk 0:00:13.9]} 21... Bc4 {[%clk 0:02:19.3]} 22. Rh6
{[%clk 0:00:13.6]} 22... Rh8 {[%clk 0:02:16.2]} 23. Rdd6 {[%clk 0:00:12.6]}
23... Be6 {[%clk 0:02:13.6]} 24. Rxh8 {[%clk 0:00:11.3]} 24... Rxh8 {[%clk
0:02:14.8]} 25. Rd4 {[%clk 0:00:11.9]} 25... h4 {[%clk 0:02:11.6]} 26. Bxe6
{[%clk 0:00:08.8]} 26... fxe6 {[%clk 0:02:10.4]} 27. b3 {[%clk 0:00:09.4]} 27...
Ng6 {[%clk 0:02:10.7]} 28. Ne2 {[%clk 0:00:09.7]} 28... Rf8 {[%clk 0:02:05.9]}
29. Rd2 {[%clk 0:00:10.2]} 29... d5 {[%clk 0:02:02.2]} 30. c3 {[%clk 0:00:08.9]}
30... Kd6 {[%clk 0:02:01.4]} 31. b4 {[%clk 0:00:07.2]} 31... Nf4 {[%clk
0:01:55.9]} 32. Nxf4 {[%clk 0:00:07.6]} 32... gxf4+ {[%clk 0:01:56.4]} 33. Kd3
{[%clk 0:00:08.4]} 33... c5 {[%clk 0:01:52.4]} 34. b5 {[%clk 0:00:07.3]} 34...
Rg8 {[%clk 0:01:51]} 35. Rf2 {[%clk 0:00:07.4]} 35... Ke5 {[%clk 0:01:50.3]} 36.
exd5 {[%clk 0:00:08.1]} 36... exd5 {[%clk 0:01:50.2]} 37. Re2+ {[%clk
0:00:09.5]} 37... Kf5 {[%clk 0:01:50.8]} 38. Kd2 {[%clk 0:00:07.9]} 38... Rg6
{[%clk 0:01:50.1]} 39. Kd3 {[%clk 0:00:08.8]} 39... Re6 {[%clk 0:01:27.6]} 40.
Rxe6 {[%clk 0:00:08.8]} 40... Kxe6 {[%clk 0:01:29.5]} 41. Kd2 {[%clk 0:00:03.5]}
41... c4 {[%clk 0:01:29.2]} 42. Ke2 {[%clk 0:00:03.9]} 42... Ke5 {[%clk
0:01:25.6]} 43. Kd2 {[%clk 0:00:04.4]} 43... d4 {[%clk 0:01:18.6]} 44. Kc2
{[%clk 0:00:04.1]} 44... Kd5 {[%clk 0:01:19.1]} 45. Kd2 {[%clk 0:00:04.8]} 45...
dxc3+ {[%clk 0:01:16.9]} 46. Kxc3 {[%clk 0:00:05.7]} 46... Kc5 {[%clk
0:01:17.9]} 47. Kc2 {[%clk 0:00:05.5]} 47... Kb4 {[%clk 0:01:14.3]} 0-1

[Event "*** Titled Tuesday Blitz"]
[Site "Chess.com"]
[Date "2018.01.02"]
[Round "6"]
[White "Bryakin_Mikhail"]
[Black "TheNomNomFactor"]
[Result "1-0"]
[WhiteElo "2531"]
[BlackElo "2399"]
[TimeControl "180+2"]
[EndTime "14:20:18 PST"]
[Termination "Bryakin_Mikhail won by resignation"]

1. d4 {[%clk 0:02:59.9]} 1... Nf6 {[%clk 0:03:00.3]} 2. c4 {[%clk 0:03:00.4]}
2... g6 {[%clk 0:03:01.5]} 3. Nc3 {[%clk 0:03:01]} 3... d5 {[%clk 0:03:02.6]} 4.
Bg5 {[%clk 0:03:01.5]} 4... Ne4 {[%clk 0:03:00.2]} 5. Bh4 {[%clk 0:03:02.5]}
5... Nxc3 {[%clk 0:03:00.5]} 6. bxc3 {[%clk 0:03:04.4]} 6... dxc4 {[%clk
0:03:02]} 7. e3 {[%clk 0:03:05.5]} 7... Be6 {[%clk 0:02:49.9]} 8. Nf3 {[%clk
0:03:06]} 8... Bg7 {[%clk 0:02:38.5]} 9. Qb1 {[%clk 0:03:06.2]} 9... b6 {[%clk
0:02:34.3]} 10. Be2 {[%clk 0:03:06.7]} 10... c5 {[%clk 0:02:35.9]} 11. O-O
{[%clk 0:02:53.5]} 11... O-O {[%clk 0:02:35.5]} 12. Rd1 {[%clk 0:02:52.8]} 12...
Nd7 {[%clk 0:02:32.4]} 13. Qb2 {[%clk 0:02:31.6]} 13... Rc8 {[%clk 0:01:56.9]}
14. d5 {[%clk 0:02:24.2]} 14... Bg4 {[%clk 0:01:55]} 15. h3 {[%clk 0:02:18.9]}
15... Bxf3 {[%clk 0:01:55.2]} 16. Bxf3 {[%clk 0:02:20.8]} 16... Bf6 {[%clk
0:01:51.4]} 17. Bxf6 {[%clk 0:02:13.3]} 17... exf6 {[%clk 0:01:45]} 18. Be2
{[%clk 0:02:07.4]} 18... Ne5 {[%clk 0:01:43.8]} 19. f4 {[%clk 0:01:58.2]} 19...
Nd3 {[%clk 0:01:44.7]} 20. Bxd3 {[%clk 0:01:59.5]} 20... cxd3 {[%clk 0:01:45.5]}
21. Rxd3 {[%clk 0:02:01.4]} 21... c4 {[%clk 0:01:43.1]} 22. Rd4 {[%clk
0:02:01.5]} 22... Re8 {[%clk 0:01:42.8]} 23. e4 {[%clk 0:02:02]} 23... Qd6
{[%clk 0:01:43.4]} 24. Qd2 {[%clk 0:01:58.6]} 24... b5 {[%clk 0:01:34.7]} 25.
Rb1 {[%clk 0:01:49.6]} 25... Qc5 {[%clk 0:01:32.4]} 26. Kh1 {[%clk 0:01:49.8]}
26... a5 {[%clk 0:01:31.9]} 27. d6 {[%clk 0:01:44.1]} 27... Red8 {[%clk
0:01:31.5]} 28. Rd5 {[%clk 0:01:44.9]} 28... Qc6 {[%clk 0:01:28.4]} 29. Rbxb5
{[%clk 0:01:40.8]} 29... Rxd6 {[%clk 0:01:28.8]} 30. Rxa5 {[%clk 0:01:41.8]}
30... Rcd8 {[%clk 0:01:24.2]} 31. Rxd6 {[%clk 0:01:39.7]} 31... Rxd6 {[%clk
0:01:26.1]} 32. Rd5 {[%clk 0:01:40.9]} 32... Re6 {[%clk 0:01:27.5]} 33. Qd4
{[%clk 0:01:39.2]} 33... Kg7 {[%clk 0:01:26]} 34. e5 {[%clk 0:01:35.6]} 34...
fxe5 {[%clk 0:01:03.4]} 35. Rxe5 {[%clk 0:01:37.5]} 35... Rf6 {[%clk 0:00:56]}
36. Rc5 {[%clk 0:01:17.5]} 36... Qa4 {[%clk 0:00:32.8]} 37. Rxc4 {[%clk
0:01:18.2]} 37... Qxa2 {[%clk 0:00:33.3]} 38. Rc6 {[%clk 0:01:11.3]} 38... Qb1+
{[%clk 0:00:29.9]} 39. Kh2 {[%clk 0:01:10.6]} 39... Qf5 {[%clk 0:00:30.2]} 40.
Qxf6+ {[%clk 0:01:11.2]} 40... Qxf6 {[%clk 0:00:32.1]} 41. Rxf6 {[%clk
0:01:12.9]} 41... Kxf6 {[%clk 0:00:34]} 42. Kg3 {[%clk 0:01:14.2]} 42... Ke6
{[%clk 0:00:34.4]} 43. Kg4 {[%clk 0:01:14.4]} 43... Kd5 {[%clk 0:00:36.3]} 44.
Kg5 {[%clk 0:01:14.8]} 44... Ke4 {[%clk 0:00:19.5]} 45. Kf6 {[%clk 0:01:07.5]}
45... Kxf4 {[%clk 0:00:20.2]} 46. Kxf7 {[%clk 0:01:08.1]} 46... g5 {[%clk
0:00:21]} 47. Kg7 {[%clk 0:01:07.9]} 47... h5 {[%clk 0:00:21.6]} 48. c4 {[%clk
0:01:09.2]} 48... g4 {[%clk 0:00:21.3]} 49. c5 {[%clk 0:01:09.3]} 49... Ke5
{[%clk 0:00:22.1]} 50. h4 {[%clk 0:01:08.3]} 50... Kd5 {[%clk 0:00:22.3]} 51.
Kg6 {[%clk 0:01:09.5]} 1-0